bitfinex-derivatives/quotes_ETHF0:USTF0_20241017
["timestamp","ask_amount","ask_price","bid_price","bid_amount"]
[1729144313427,0.38033,2629.9,2629.8,0.6104]
[1729144313934,0.38033,2629.9,2629.5,0.38039]
[1729144313935,0.38037,2629.7,2629.5,0.38039]
[1729144314126,0.38037,2629.7,2629.5,0.98329]
[1729144314329,0.38038,2629.7,2629.5,2.47641626]
[1729144314935,0.38036,2629.7,2629.5,0.6029]
[1729144315236,0.38037,2629.7,2629.5,2.47640626]
[1729144316333,2.67,2629.8,2629.5,2.47640626]
[1729144316539,0.38037,2629.7,2629.5,2.47640626]
[1729144316938,0.38037,2629.7,2629.5,0.98328]
[1729144317938,2.67,2629.8,2629.5,0.6029]
[1729144318241,2.67,2629.8,2629.6,0.38037]
[1729144318242,0.38036,2629.7,2629.6,0.38037]
[1729144318641,2.67,2629.8,2629.5,0.6029]
[1729144319040,3.05035,2629.8,2629.7,0.38036]
[1729144319440,2.67,2629.8,2629.7,0.38036]
[1729144320349,5.8778,2630.0,2629.5,0.6029]
[1729144320544,5.8778,2630.0,2629.9,0.38033]
[1729144320844,6.25812,2630.0,2629.9,0.38033]
[1729144321044,10.06052,2630.0,2629.9,0.38033]
[1729144323141,6.25812,2630.0,2629.9,0.38033]
[1729144324747,3.05032,2630.0,2629.9,0.38033]
[1729144325052,6.25812,2630.0,2629.9,0.38033]
[1729144327252,3.05032,2630.0,2629.9,0.38033]
[1729144327642,1.5785,2630.3,2629.5,2.09602626]
[1729144327643,2.67,2630.3,2629.5,2.09602626]
[1729144327848,3.05028,2630.3,2630.2,0.38029]
[1729144328243,2.67,2630.3,2630.2,0.38029]
[1729144328448,3.2078,2630.4,2630.0,1.7981]
[1729144328644,3.2078,2630.4,2630.3,0.38027]
[1729144328950,3.2078,2630.4,2630.3,1.55724733]
[1729144329147,3.2078,2630.4,2630.3,5.35884733]
[1729144329341,3.2078,2630.4,2630.3,6.85197359]
[1729144329547,3.2078,2630.4,2630.3,3.05037359]
[1729144329945,3.2078,2630.4,2630.3,6.85197359]
[1729144330354,3.2078,2630.4,2630.3,1.49312626]
[1729144330546,3.2078,2630.4,2630.1,0.3803]
[1729144330847,2.67,2630.2,2630.1,0.3803]
[1729144331054,2.67,2630.2,2630.0,2.17841]
[1729144331547,5.8778,2630.4,2630.2,0.38028]
[1729144331851,5.8778,2630.4,2630.3,0.38027]
[1729144332250,6.25807,2630.4,2630.2,0.38028]
[1729144332454,6.25807,2630.4,2630.0,1.7981]
[1729144332455,5.8778,2630.4,2630.0,1.7981]
[1729144332648,6.25807,2630.4,2630.2,0.38028]
[1729144333149,5.8778,2630.4,2630.3,0.38027]
[1729144334056,3.2078,2630.4,2630.3,0.38027]
[1729144337554,3.2078,2630.4,2630.0,3.29122626]
[1729144337762,3.2078,2630.4,2630.3,0.38027]
[1729144338549,3.58806,2630.4,2630.3,0.38027]
[1729144338758,3.2078,2630.4,2630.3,0.38027]
[1729144339652,3.58806,2630.4,2630.2,0.38028]
[1729144339851,3.58806,2630.4,2630.0,1.7981]
[1729144340055,3.58806,2630.4,2630.3,0.38027]
[1729144342861,5.8778,2630.5,2630.0,1.7981]
[1729144343258,0.38027,2630.4,2630.3,0.38027]
[1729144343959,0.38029,2630.2,2630.1,0.3803]
[1729144344155,8.01046728,2630.5,2630.0,1.7981]
[1729144344357,0.3803,2630.1,2630.0,1.7981]
[1729144345363,0.3803,2630.1,2630.0,1.1939]
[1729144345558,3.8024,2630.1,2629.8,0.38034]
[1729144345761,0.38033,2630.0,2629.8,0.38034]
[1729144345964,0.38033,2630.0,2629.7,1.8865]
[1729144346263,0.38033,2630.0,2629.8,0.38033]
[1729144346563,0.38033,2630.0,2629.9,0.38033]
[1729144347058,0.38031,2630.1,2629.9,0.38033]
[1729144347257,5.8778,2630.2,2630.0,0.38032]
[1729144347652,0.3803,2630.1,2630.0,0.38032]
[1729144347855,5.8778,2630.2,2630.0,0.38032]
[1729144347856,6.2581,2630.2,2630.0,0.38032]
[1729144348056,0.3803,2630.1,2630.0,0.38032]
[1729144348660,5.8778,2630.2,2629.9,0.38032]
[1729144348964,5.8778,2630.2,2630.0,0.38031]
[1729144348965,0.38031,2630.1,2630.0,0.38031]
[1729144349167,3.0503,2630.2,2629.7,4.33052626]
[1729144349366,3.0503,2630.2,2630.1,0.3803]
[1729144350065,0.38031,2630.1,2629.8,0.38035]
[1729144350256,6.2581,2630.2,2630.0,0.38031]
[1729144350656,3.0503,2630.2,2629.7,4.33052626]
[1729144350857,3.0503,2630.2,2629.8,1.17897183]
[1729144351071,3.0503,2630.2,2630.0,0.38031]
[1729144351867,3.0503,2630.2,2629.7,4.33052626]
[1729144351868,3.0503,2630.2,2630.1,0.3803]
[1729144352360,2.67,2630.2,2630.1,0.3803]
[1729144352769,4.03523728,2630.4,2630.2,0.38028]
[1729144353069,0.38027,2630.3,2630.2,0.38028]
[1729144353664,0.38028,2630.3,2630.2,0.38028]
[1729144354754,3.05026,2630.4,2630.3,0.38027]
[1729144354962,2.67,2630.4,2630.3,0.38027]
[1729144355464,3.05026,2630.4,2630.3,0.38027]
[1729144356873,2.67,2630.4,2630.3,0.38027]
[1729144357370,3.05026,2630.4,2630.3,0.38027]
[1729144357775,2.67,2630.4,2630.3,0.38027]
[1729144361574,3.05026,2630.4,2630.3,0.38027]
[1729144365377,4.53527608,2630.4,2630.3,0.38027]
[1729144365982,1.23,2630.4,2630.3,0.38027]
[1729144366479,2.71501608,2630.4,2630.3,0.38027]
[1729144366778,1.61026,2630.4,2630.3,0.38027]
[1729144367182,3.09527608,2630.4,2630.3,0.38027]
[1729144368479,0.38027,2630.3,2630.2,1.00168]
[1729144368678,1.61027,2630.3,2630.2,0.38028]
[1729144368869,1.61029,2630.3,2630.2,0.38029]
[1729144369384,0.38029,2630.2,2630.1,1.6193]
[1729144369681,0.38029,2630.2,2630.1,1.61929]
[1729144369881,1.23,2630.3,2630.1,1.239]
[1729144370076,1.61029,2630.3,2630.2,0.38029]
[1729144370277,4.81809,2630.3,2630.2,0.38029]
[1729144370483,4.4378,2630.3,2630.1,1.239]
[1729144370684,0.38029,2630.2,2630.1,1.61929]
[1729144370883,4.4378,2630.3,2630.1,1.239]
[1729144371083,4.81809,2630.3,2630.2,0.38029]
[1729144371979,0.38029,2630.2,2630.1,1.6193]
[1729144372283,0.38029,2630.2,2630.1,1.239]
[1729144373581,1.61029,2630.2,2630.1,1.239]
[1729144374285,3.09530608,2630.2,2630.1,1.239]
[1729144374486,3.10032737,2630.2,2630.1,0.6146]
[1729144375494,2.72003737,2630.2,2629.9,1.5754678]
[1729144375681,1.61032,2630.0,2629.9,2.1973678]
[1729144375882,1.61032,2630.0,2629.9,3.38685752]
[1729144376081,1.61032,2630.0,2629.9,2.38968972]
[1729144376379,9.73023737,2630.0,2629.8,0.99725163]
[1729144376583,9.73023737,2630.0,2629.6,1.59215163]
[1729144376584,3.73024458,2629.9,2629.6,1.59215163]
[1729144376788,1.23,2629.7,2629.6,0.97527]
[1729144377983,1.61036,2629.7,2629.6,0.97527]
[1729144378185,1.23,2629.7,2629.6,0.97527]
[1729144379080,1.23,2629.7,2629.6,2.20527]
[1729144379280,1.23,2629.8,2629.7,0.38036]
[1729144379676,1.23,2629.8,2629.7,1.61036]
[1729144381290,1.23,2629.8,2629.7,2.60761163]
[1729144381492,1.23,2629.8,2629.7,1.61036]
[1729144381695,4.69781005,2630.0,2629.7,1.23]
[1729144381992,6.30814005,2630.0,2629.8,0.38034]
[1729144382188,6.30814005,2630.0,2629.9,0.6207]
[1729144382387,6.30813005,2630.0,2629.9,0.6207]
[1729144383491,4.81812,2630.0,2629.9,0.6207]
[1729144384084,4.81812,2630.0,2629.9,1.00103]
[1729144384284,1.23,2630.0,2629.9,1.99828163]
[1729144384879,1.23,2630.0,2629.9,2.61168163]
[1729144385794,4.81812,2630.0,2629.9,2.23135163]
[1729144385981,6.30813005,2630.0,2629.9,0.6207]
[1729144386179,4.81812,2630.0,2629.9,0.6207]
[1729144386397,6.30813005,2630.0,2629.9,0.6207]
[1729144386993,0.38035,2629.8,2629.7,1.99100163]
[1729144387196,1.61035,2629.8,2629.7,1.99100163]
[1729144387487,1.61035,2629.8,2629.7,0.99725163]
[1729144387687,0.38036,2629.7,2629.6,1.37762163]
[1729144387996,0.38036,2629.7,2629.6,0.99725163]
[1729144387997,1.61036,2629.7,2629.6,0.99725163]
[1729144388196,1.61036,2629.7,2629.6,0.38038]
[1729144388493,0.38038,2629.6,2629.5,1.97053163]
[1729144388683,1.23,2629.6,2629.5,3.15952327]
[1729144388884,1.23,2629.6,2629.5,3.15952754]
[1729144390784,1.23,2629.6,2629.5,1.97053163]
[1729144391389,1.61038,2629.6,2629.5,1.97053163]
[1729144391891,1.23,2629.6,2629.5,1.97053163]
[1729144395594,1.61038,2629.6,2629.5,1.97053163]
[1729144395793,1.23,2629.6,2629.5,1.97053163]
[1729144396195,1.23,2629.6,2629.5,0.97328]
[1729144396697,1.61038,2629.6,2629.5,0.97329]
[1729144396991,1.23,2629.6,2629.5,0.97329]
[1729144402592,1.23,2629.7,2629.5,0.5929]
[1729144402798,1.23,2629.7,2629.6,0.38038]
[1729144402799,1.61037,2629.7,2629.6,0.38038]
[1729144402994,1.23,2629.7,2629.6,0.38038]
[1729144403699,1.61036,2629.7,2629.6,0.38038]
[1729144404088,1.23,2629.7,2629.6,0.38038]
[1729144404493,1.61036,2629.7,2629.6,0.38038]
[1729144404694,1.23,2629.7,2629.6,0.38038]
[1729144404907,1.49001005,2629.9,2629.5,0.5929]
[1729144405101,1.87035005,2629.9,2629.8,0.38035]
[1729144405403,3.10035005,2629.9,2629.8,0.38035]
[1729144405805,1.61034,2629.9,2629.8,0.38035]
[1729144407009,1.23,2629.9,2629.8,0.38035]
[1729144407303,1.23,2630.0,2629.9,0.38033]
[1729144407600,1.23,2630.0,2629.9,2.04148163]
[1729144407811,1.23,2630.0,2629.9,3.89781551]
[1729144408595,3.2078,2630.4,2629.9,3.75023388]
[1729144408801,1.23,2630.1,2630.0,2.60630184]
[1729144409103,1.23,2630.1,2630.0,4.2914929]
[1729144409502,3.2078,2630.4,2630.3,0.38027]
[1729144409697,1.49001005,2630.6,2630.5,0.38025]
[1729144409904,3.2078,2630.7,2630.6,0.38023]
[1729144410405,4.4378,2630.7,2630.6,1.37619045]
[1729144410596,3.2078,2630.7,2630.6,3.79382607]
[1729144410907,2.52225005,2631.3,2631.1,0.38016]
[1729144411101,4.79695463,2631.5,2630.8,4.20334384]
[1729144411305,0.38016,2631.2,2631.0,0.38017]
[1729144411504,0.6521,2631.4,2631.0,0.38017]
[1729144411703,1.61016,2631.1,2630.9,2.41338]
[1729144411898,1.23,2631.0,2630.9,2.41338]
[1729144421412,1.23,2631.0,2630.9,5.62118]
[1729144422315,1.23,2631.0,2630.9,2.41338]
[1729144422513,1.23,2631.0,2630.9,5.62118]
[1729144422920,1.23,2631.0,2630.9,3.58798]
[1729144423119,0.3802,2630.9,2630.6,2.0176]
[1729144423326,1.23,2630.7,2630.6,2.39782]
[1729144424618,1.23,2631.0,2630.9,0.38019]
[1729144424815,40.8,2631.3,2630.9,1.23]
[1729144425017,1.23,2631.2,2631.1,0.38016]
[1729144427610,1.61014,2631.2,2631.1,0.38016]
[1729144427810,1.23,2631.2,2631.1,0.38016]
[1729144428425,1.61014,2631.2,2631.1,0.38016]
[1729144428626,0.38018,2631.0,2630.9,0.38018]
[1729144428825,0.38018,2631.0,2630.9,0.38019]
[1729144428826,1.23,2631.0,2630.9,0.38019]
[1729144429322,1.23,2631.0,2630.9,1.02339]
[1729144430316,1.23,2631.0,2630.9,4.23119]
[1729144431314,1.23,2631.0,2630.9,1.02339]
[1729144431717,1.23,2631.0,2630.9,4.23119]
[1729144433126,1.23,2631.0,2630.9,1.02339]
[1729144433317,1.23,2631.0,2630.9,4.23119]
[1729144433721,0.38019,2630.9,2630.8,0.3802]
[1729144433929,1.61019,2630.9,2630.8,0.3802]
[1729144434122,0.38018,2631.0,2630.9,0.38018]
[1729144434326,1.23,2631.0,2630.8,0.3802]
[1729144434530,1.23,2630.9,2630.8,0.3802]
[1729144434726,0.3802,2630.8,2630.7,1.70831]
[1729144434916,0.3802,2630.8,2630.5,1.8796]
[1729144434917,1.23,2630.8,2630.5,0.6496]
[1729144435117,1.23,2630.6,2630.5,1.02985]
[1729144435323,1.61022,2630.7,2630.5,1.8796]
[1729144435622,1.61022,2630.7,2630.6,0.38023]
[1729144435824,1.23,2630.7,2630.3,3.2078]
[1729144436122,0.6798,2630.8,2630.3,6.4155]
[1729144436123,1.23,2630.5,2630.3,6.4155]
[1729144436323,1.23,2630.5,2630.4,0.38026]
[1729144437332,1.23,2630.6,2630.5,0.38025]
[1729144441433,1.61023,2630.6,2630.5,0.38025]
[1729144441825,1.3767,2630.8,2630.4,1.23]
[1729144441826,1.23,2630.7,2630.4,1.23]
[1729144442027,1.3767,2630.8,2630.7,0.3802]
[1729144442028,0.38021,2630.8,2630.7,0.3802]
[1729144442234,1.61021,2630.8,2630.7,0.3802]
[1729144443833,1.61021,2630.8,2630.4,1.23]
[1729144443834,1.23,2630.8,2630.4,1.23]
[1729144444025,1.61025,2630.5,2630.4,0.38026]
[1729144449027,2.26675,2630.5,2630.4,0.38026]
[1729144450335,15.19003,2630.5,2630.1,0.38029]
[1729144450633,1.23,2630.2,2629.9,1.3338]
[1729144450830,1.61032,2630.0,2629.9,1.71413]
[1729144451230,0.99032429,2630.1,2629.8,3.2078]
[1729144451431,0.99032429,2630.1,2629.3,1.94659384]
[1729144451432,0.38036,2629.8,2629.7,0.38035]
[1729144451732,1.61036,2629.8,2629.7,0.38035]
[1729144451931,1.23,2629.8,2629.5,1.23]
[1729144452140,2.22032429,2629.8,2629.6,1.23]
[1729144452333,0.38036,2629.7,2629.6,1.61036]
[1729144453639,0.38036,2629.7,2629.6,1.23]
[1729144453834,0.38038,2629.6,2629.5,0.38038]
[1729144454029,0.38038,2629.6,2629.5,1.61038]
[1729144460147,0.38038,2629.6,2629.5,4.81818]
[1729144461144,1.61038,2629.6,2629.5,3.58818]
[1729144462346,1.61038,2629.6,2629.5,3.2078]
[1729144463945,1.23,2629.6,2629.4,0.3804]
[1729144464243,1.61039,2629.5,2629.4,1.6104]
[1729144466840,1.61039,2629.5,2629.4,1.23]
[1729144467037,0.38041,2629.4,2629.3,2.91631]
[1729144467545,1.61041,2629.4,2629.3,1.68632]
[1729144467742,0.38041,2629.4,2629.3,2.91632]
[1729144468338,1.61041,2629.4,2629.3,1.68632]
[1729144470240,1.61041,2629.4,2629.3,1.3059]
[1729144470448,1.61041,2629.4,2629.3,1.68632]
[1729144471447,1.61041,2629.4,2629.3,1.3059]
[1729144471846,1.61041,2629.4,2629.3,1.68632]
[1729144472047,1.61041,2629.4,2629.3,1.3059]
[1729144472552,1.61041,2629.4,2629.3,1.68632]
[1729144473854,1.61041,2629.4,2629.3,2.91632]
[1729144474251,1.23,2629.4,2629.3,2.91632]
[1729144474650,1.6104,2629.5,2629.4,0.38041]
[1729144474849,1.23,2629.5,2629.3,2.5359]
[1729144475051,0.38041,2629.4,2629.3,2.91631]
[1729144476446,1.23,2629.5,2629.3,2.5359]
[1729144476653,1.6104,2629.5,2629.4,0.38041]
[1729144477351,0.38042,2629.4,2629.3,0.38041]
[1729144477659,1.61042,2629.4,2629.3,1.68191]
[1729144478351,1.23,2629.4,2629.3,1.68191]
[1729144478546,1.23,2629.4,2629.3,2.91191]
[1729144478751,1.61041,2629.4,2629.3,2.91191]
[1729144479655,1.61041,2629.4,2629.3,1.68191]
[1729144480161,1.61041,2629.4,2629.3,4.88971]
[1729144482659,1.61041,2629.4,2629.3,1.68191]
[1729144482865,1.61041,2629.4,2629.3,4.88971]
[1729144484159,1.61041,2629.4,2629.3,6.11971]
[1729144488767,1.23,2629.4,2629.3,6.11971]
[1729144490360,1.61041,2629.4,2629.3,6.11971]
[1729144490757,1.61041,2629.4,2629.3,4.88971]
[1729144492859,1.61041,2629.4,2629.3,1.68191]
[1729144493259,2.60073429,2629.4,2629.3,4.88971]
[1729144494869,2.60073429,2629.4,2629.3,1.68191]
[1729144495069,2.60073429,2629.4,2629.3,4.88971]
[1729144495265,3.10042005,2629.4,2629.3,4.88971]
[1729144496171,2.60213563,2629.4,2629.3,4.88971]
[1729144496370,1.61041,2629.4,2629.3,7.07316809]
[1729144498374,3.10042005,2629.4,2629.3,7.07316809]
[1729144498873,3.10042005,2629.4,2629.3,7.07329768]
[1729144500666,3.10042005,2629.4,2629.3,7.30775384]
[1729144500870,2.60294652,2629.4,2629.3,8.8008801]
[1729144502167,1.61041,2629.4,2629.3,7.57097763]
[1729144502366,3.10042005,2629.4,2629.3,2.18632872]
[1729144502577,3.10042005,2629.4,2629.3,0.99812875]
[1729144502578,3.09933398,2629.4,2629.3,0.99812875]
[1729144502780,3.09933398,2629.4,2629.3,1.37854875]
[1729144503074,1.61041,2629.4,2629.3,1.37854875]
[1729144504175,3.09932532,2629.4,2629.3,1.37854875]
[1729144504375,2.36143458,2629.5,2629.4,0.38041]
[1729144504575,0.99278006,2629.5,2629.4,11.98722931]
[1729144504769,0.99278006,2629.5,2629.4,10.49410305]
[1729144504968,2.60317006,2629.5,2629.4,6.57770226]
[1729144505174,3.09944559,2629.5,2629.4,6.07864457]
[1729144505373,3.59143458,2629.5,2629.4,0.6845]
[1729144506081,1.61039,2629.5,2629.4,2.06306152]
[1729144506276,3.59143458,2629.5,2629.4,0.6845]
[1729144506475,1.61039,2629.5,2629.4,1.68265152]
[1729144506672,1.61039,2629.5,2629.4,2.06306152]
[1729144506673,3.59143458,2629.5,2629.4,2.06306152]
[1729144506872,1.61039,2629.5,2629.4,2.06306152]
[1729144507273,3.59143458,2629.5,2629.4,2.06306152]
[1729144507479,1.61039,2629.5,2629.4,1.68265152]
[1729144507681,3.59143458,2629.5,2629.4,1.68265152]
[1729144508285,0.38041,2629.4,2629.3,0.99815152]
[1729144508481,0.38042,2629.3,2629.2,1.37857152]
[1729144508782,1.61042,2629.3,2629.2,2.56724418]
[1729144509177,3.09990763,2629.3,2629.2,3.06630187]
[1729144510384,1.61042,2629.3,2629.2,3.06630187]
[1729144510676,3.10046551,2629.3,2629.2,3.06630187]
[1729144511383,3.10046551,2629.3,2629.2,1.56909266]
[1729144511587,2.6040923,2629.3,2629.2,3.5462]
[1729144512286,3.10046551,2629.3,2629.2,1.56909266]
[1729144513986,3.10046551,2629.3,2629.2,3.06714921]
[1729144514183,3.10046551,2629.3,2629.2,3.06715921]
[1729144514383,3.10046551,2629.3,2629.2,2.686931]
[1729144514588,4.81822,2629.3,2629.2,1.18887445]
[1729144514785,3.8032,2629.2,2629.1,0.99880814]
[1729144515090,7.51635799,2629.2,2628.6,1.97710734]
[1729144515289,7.51635799,2629.2,2628.7,2.55263244]
[1729144515290,0.38049,2628.8,2628.7,2.55263244]
[1729144515490,1.87108783,2628.8,2628.7,1.74411]
[1729144515786,1.37356022,2628.8,2628.7,2.92199187]
[1729144515982,0.99306986,2628.8,2628.7,2.5414541]
[1729144516180,2.60355986,2628.8,2628.7,1.3636]
[1729144516583,6.40755986,2628.8,2628.7,1.3636]
[1729144516992,6.40755986,2628.8,2628.7,2.54097892]
[1729144517291,6.40755986,2628.8,2628.7,1.3636]
[1729144518290,1.61049,2628.8,2628.7,1.74411]
[1729144519088,1.61049,2628.8,2628.4,3.58834]
[1729144519089,0.38054,2628.5,2628.4,3.58834]
[1729144519294,1.23,2628.5,2628.4,4.81834]
[1729144519493,0.38051,2628.7,2628.6,0.38052]
[1729144519684,2.60250554,2628.7,2628.6,0.38052]
[1729144520998,1.61051,2628.7,2628.6,0.38052]
[1729144523190,0.38054,2628.6,2628.5,0.38054]
[1729144523395,1.61054,2628.6,2628.5,0.38054]
[1729144524492,0.38054,2628.5,2628.4,3.58834]
[1729144524698,1.61054,2628.5,2628.4,3.58834]
[1729144525391,1.61054,2628.5,2628.4,3.2078]
[1729144525798,12.2648,2628.5,2627.7,2.92870734]
[1729144526099,4.87709554,2628.4,2627.8,2.0113]
[1729144526310,0.38059,2628.2,2628.1,0.38059]
[1729144526904,4.18539,2628.2,2628.1,0.38059]
[1729144527296,4.18539,2628.2,2628.0,0.3806]
[1729144527297,0.38059,2628.1,2628.0,0.3806]
[1729144527492,1.61059,2628.1,2628.0,0.3806]
[1729144527905,0.6486,2628.3,2628.2,0.38058]
[1729144528101,0.38058,2628.2,2628.1,0.38058]
[1729144528403,5.41538,2628.2,2628.1,0.38058]
[1729144528701,5.0348,2628.2,2627.9,1.23]
[1729144528898,1.23,2628.0,2627.9,1.23]
[1729144529103,1.23,2628.0,2627.9,1.61062]
[1729144530398,1.23,2628.0,2627.9,0.38062]
[1729144540399,1.23,2628.2,2628.1,0.38059]
[1729144546500,2.31889554,2628.6,2628.4,0.38054]
[1729144546501,0.38055,2628.5,2628.4,0.38054]
[1729144546710,1.61055,2628.5,2628.4,0.38054]
[1729144547108,2.31889554,2628.6,2628.2,2.063]
[1729144547308,0.38056,2628.4,2628.3,0.38055]
[1729144547508,1.61056,2628.4,2628.3,0.38055]
[1729144548212,0.38056,2628.3,2628.2,2.44356]
[1729144548408,1.61056,2628.3,2628.2,2.44356]
[1729144550317,1.61056,2628.3,2628.2,1.74836]
[1729144551811,1.23,2628.3,2628.2,1.74836]
[1729144552013,1.61056,2628.3,2628.2,1.74836]
[1729144552212,1.23,2628.3,2628.2,1.74836]
[1729144552608,1.61056,2628.3,2628.2,1.74836]
[1729144552917,1.23,2628.3,2628.2,1.74836]
[1729144553506,1.61056,2628.3,2628.2,1.74836]
[1729144553909,5.25712554,2628.6,2628.2,1.3678]
[1729144554111,4.26513,2628.6,2628.5,0.38054]
[1729144554609,8.06913,2628.6,2628.5,0.38054]
[1729144555008,0.38055,2628.5,2628.4,0.38054]
[1729144555402,1.61055,2628.5,2628.4,0.38054]
[1729144556210,2.60254554,2628.5,2628.4,0.38054]
[1729144559119,3.10114783,2628.5,2628.4,0.38054]
[1729144560114,0.38055,2628.4,2628.3,1.02715]
[1729144560315,3.10114783,2628.4,2628.3,1.02715]
[1729144560618,1.61055,2628.4,2628.3,1.02715]
[1729144560824,3.10114783,2628.4,2628.3,1.02715]
[1729144561911,3.10114783,2628.4,2628.3,0.38055]
[1729144562217,0.38056,2628.3,2628.2,1.3678]
[1729144562414,2.84056,2628.3,2628.2,0.6752]
[1729144562616,2.27076,2628.3,2628.2,1.05578]
[1729144562824,4.25822377,2628.3,2628.2,0.6752]
[1729144563016,4.25822377,2628.3,2628.2,1.05578]
[1729144563634,4.75508972,2628.3,2628.2,1.05578]
[1729144564415,8.55988972,2628.3,2628.2,0.38058]
[1729144564630,0.38058,2628.2,2628.1,0.6932]
[1729144564928,7.51912972,2628.2,2628.0,1.0518]
[1729144565228,3.59731158,2628.1,2628.0,1.0518]
[1729144565615,3.59731158,2628.1,2628.0,0.3806]
[1729144565616,3.59757789,2628.1,2628.0,0.3806]
[1729144565817,3.59757789,2628.1,2627.8,1.02042]
[1729144565818,0.38062,2627.9,2627.8,1.02042]
[1729144566120,3.59745494,2627.9,2627.8,1.02042]
[1729144566718,3.59745494,2627.9,2627.8,0.6398]
[1729144566927,1.61062,2627.9,2627.8,1.02044]
[1729144567429,42.41062,2627.9,2627.8,1.02044]
[1729144569934,44.01672109,2627.9,2627.8,1.02044]
[1729144570131,44.39734109,2627.9,2627.8,1.02044]
[1729144570336,44.01672109,2627.9,2627.8,1.02044]
[1729144570628,44.39737108,2627.9,2627.8,1.02044]
[1729144570834,1.98675108,2627.9,2627.8,2.25044]
[1729144571024,2.48354258,2627.9,2627.8,5.6754]
[1729144571222,0.99344404,2627.9,2627.8,6.05604]
[1729144571425,2.22344404,2627.9,2627.8,6.05604]
[1729144571936,1.23,2627.9,2627.8,6.00342324]
[1729144572434,1.23,2627.9,2627.8,1.02044]
[1729144573236,1.23,2627.9,2627.8,2.19786808]
[1729144573434,1.23,2627.9,2627.8,1.02044]
[1729144573625,1.23,2627.9,2627.8,2.19787177]
[1729144574533,2.22344404,2627.9,2627.8,1.02044]
[1729144574737,1.23,2627.9,2627.8,1.02044]
[1729144575027,2.72009854,2627.9,2627.8,1.02044]
[1729144575635,1.23,2627.9,2627.8,1.02044]
[1729144575830,2.72009854,2627.9,2627.8,1.02044]
[1729144576234,1.61062,2627.9,2627.8,1.02044]
[1729144579436,3.09942879,2627.9,2627.8,1.02044]
[1729144579736,3.59737108,2627.9,2627.8,1.02044]
[1729144581332,1.61062,2627.9,2627.8,1.02044]
[1729144583139,2.71936216,2627.9,2627.8,1.02044]
[1729144583536,3.09998216,2627.9,2627.8,1.02044]
[1729144583732,3.09998216,2627.9,2627.8,0.38064]
[1729144583932,0.38067,2627.6,2627.5,0.02329902]
[1729144584133,4.82632722,2627.6,2627.5,0.02329902]
[1729144584336,0.38067,2627.6,2627.5,0.02329902]
[1729144584544,0.38067,2627.6,2626.8,1.3725]
[1729144584545,59.70870186,2627.6,2626.8,1.3725]
[1729144584835,1.8693501,2627.3,2627.1,0.38072]
[1729144585043,2.7186301,2627.2,2627.1,0.38072]
[1729144585237,3.2078,2627.7,2627.1,3.8064]
[1729144585541,1.23,2627.3,2627.2,1.61072]
[1729144585940,1.23,2627.3,2627.2,0.38072]
[1729144587033,1.23,2627.3,2627.2,1.61072]
[1729144588537,41.4403,2627.8,2627.2,6.27976696]
[1729144588739,1.23,2627.5,2627.3,1.23]
[1729144589038,4.24981,2628.0,2627.9,0.38062]
[1729144589039,3.58841,2628.0,2627.9,0.38062]
[1729144589242,44.38841,2628.0,2627.9,0.38062]
[1729144589446,0.6739,2628.1,2628.0,0.38061]
[1729144589643,5.19264014,2628.4,2627.8,0.9516]
[1729144589840,3.2078,2628.4,2628.1,0.38058]
[1729144590030,3.2078,2628.4,2627.9,3.2078]
[1729144590031,44.0078,2628.4,2627.9,3.2078]
[1729144590234,1.23,2628.0,2627.9,3.2078]
[1729144590545,1.61061,2628.0,2627.9,3.58842]
[1729144590937,1.61061,2628.0,2627.9,3.2078]
[1729144591242,12.09161,2628.0,2627.9,3.2078]
[1729144591637,14.31299648,2628.0,2627.1,1.49694976]
[1729144591839,1.23,2627.2,2627.1,0.38074]
[1729144595350,11.0364,2627.2,2626.7,3.2078]
[1729144595570,1.23,2626.8,2626.7,0.3808]
[1729144596054,1.8722,2626.8,2626.7,0.3808]
[1729144596545,0.6422,2627.1,2627.0,0.38075]
[1729144596741,2.25295,2627.1,2627.0,0.38075]
[1729144596942,6.05935,2627.1,2627.0,0.38075]
[1729144597744,5.6786,2627.1,2627.0,0.38075]
[1729144597950,1.8722,2627.1,2627.0,0.38075]
[1729144598154,1.8722,2627.1,2626.9,0.38075]
[1729144598155,0.38076,2627.0,2626.9,0.38075]
[1729144598346,1.23,2627.0,2626.6,0.7023]
[1729144598547,1.23,2626.7,2626.6,1.08311]
[1729144598852,1.02295,2627.1,2626.7,0.3808]
[1729144598853,1.23,2626.8,2626.7,0.3808]
[1729144599056,0.6422,2627.1,2627.0,0.38075]
[1729144599255,1.8722,2627.1,2627.0,0.38075]
[1729144599857,2.25294,2627.1,2627.0,0.38075]
[1729144600251,1.8722,2627.1,2627.0,0.38075]
[1729144600854,0.6422,2627.1,2627.0,0.38075]
[1729144601159,2.25294,2627.1,2627.0,0.38075]
[1729144604753,0.38075,2627.0,2626.9,1.06466]
[1729144604954,1.61075,2627.0,2626.9,1.06466]
[1729144607557,1.61075,2627.0,2626.9,0.38076]
[1729144607760,0.38077,2626.9,2626.8,1.03648]
[1729144607963,1.61077,2626.9,2626.8,1.03648]
[1729144609665,1.23,2626.9,2626.8,1.03648]
[1729144609858,1.02294,2627.1,2627.0,0.38075]
[1729144610163,1.8722,2627.1,2627.0,0.38075]
[1729144610457,40.8,2627.4,2627.3,0.38071]
[1729144610663,2.28439,2627.4,2627.3,0.38071]
[1729144611054,1.9037,2627.4,2627.3,0.38071]
[1729144611252,40.8,2627.6,2627.5,0.38067]